fUSD/lending_fUSD_20251006
["ID","MTS","AMOUNT","RATE_DAILY","PERIOD"]
[389675427,1759786236065,-361.25446338,0.00028557,2]
[389675428,1759786236074,-0.51307316,0.00028557,2]
[389675429,1759786236223,-232.48512684,0.00028557,2]
[389675430,1759786236232,-305.51487316,0.00028557,2]
[389675431,1759786236243,-694.48512684,0.00028557,2]
[389675432,1759786236252,-279.55983959,0.000286,10]
[389675459,1759786237998,-4218.0,0.000231,2]
[389675460,1759786238007,-5512.0,0.000236,3]
[389675461,1759786238016,-5512.0,0.00024,5]
[389675462,1759786238026,-1020.44016041,0.000286,10]
[389675463,1759786238035,-1425.0,0.00028605,2]
[389675464,1759786238044,-500.0,0.00028615,15]
[389675465,1759786238053,-166.66,0.0002862,2]
[389675466,1759786238062,-1713.84420843,0.00028637,2]
[389675467,1759786238071,-2540.59871871,0.00028647,2]
[389675468,1759786238080,-158.19917542,0.00028647,2]
[389675469,1759786238089,-213.12352725,0.00028649,2]
[389675470,1759786238098,-2540.59871869,0.00028649,2]
[389675471,1759786238107,-361.25446331,0.00028651,2]
[389675472,1759786238116,-2540.59871869,0.00028651,2]
[389675473,1759786238125,-2540.59871869,0.00028654,2]
[389675474,1759786238135,-155.56,0.00028655,15]
[389675475,1759786238144,-2540.59871869,0.00028656,2]
[389675476,1759786238152,-33295.9844654,0.00028657,3]
[389675477,1759786238161,-27792.5927,0.00028657,2]
[389675478,1759786238171,-5000.0,0.00028657,2]
[389675480,1759786238179,-1139.37518555,0.00028658,2]
[389675482,1759786238188,-2540.59871869,0.00028658,2]
[389675484,1759786238197,-160.64302103,0.00028659,2]
[389675486,1759786238206,-2540.59871869,0.0002866,2]
[389675488,1759786238215,-2540.59871869,0.00028663,2]
[389675490,1759786238224,-294.47782026,0.00028664,2]
[389675492,1759786238233,-159.7503608,0.00028664,2]
[389675494,1759786238242,-2540.59871869,0.00028665,2]
[389675496,1759786238251,-15514.8191,0.00028667,2]
[389675498,1759786238260,-1000.0,0.00028667,2]
[389675500,1759786238269,-159.75036079,0.00028667,2]
[389675502,1759786238278,-491.5606088,0.00028667,2]
[389675503,1759786238287,-2540.59871869,0.00028667,2]
[389675505,1759786238296,-174.16345954,0.00028667,5]
[389675508,1759786238305,-2070.2247,0.00028667,2]
[389675510,1759786238314,-635.18631323,0.00028673,5]
[389675513,1759786238324,-501.23913536,0.00028673,5]
[389675514,1759786238333,-500.58777284,0.00028673,5]
[389675516,1759786238343,-500.0,0.00028673,5]
[389675518,1759786238352,-1000.0,0.00028675,2]
[389675520,1759786238362,-204.0,0.0002868,2]
[389675522,1759786238371,-200.0,0.000287,10]
[389675525,1759786238381,-1323.82530819,0.00028721,2]
[389675527,1759786238391,-158.19917541,0.00028728,2]
[389675528,1759786238400,-500.0,0.00028738,2]
[389675531,1759786238410,-150.0,0.0002874,7]
[389675532,1759786238419,-150.0,0.0002874,7]
[389675535,1759786238428,-4176.0,0.0002874,2]
[389675536,1759786238440,-151.0,0.00028744,7]
[389675538,1759786238449,-361.25446331,0.00028745,2]
[389675540,1759786238458,-1026.29763777,0.00028746,15]
[389675542,1759786238468,-500.0,0.00028747,2]
[389675545,1759786238478,-500.0,0.00028747,2]
[389675547,1759786238490,-299663.860189,0.00028747,3]
[389675548,1759786238499,-180007.51325,0.00028747,3]
[389675550,1759786238509,-150.52,0.00028747,2]
[389675553,1759786238519,-692.85645307,0.00028747,2]
[389675555,1759786238530,-33295.9844654,0.00028754,3]
[389675557,1759786238539,-21819.0925152,0.00028754,3]
[389675559,1759786238549,-155.56,0.00028755,15]
[389675561,1759786238558,-500.0,0.00028756,2]
[389675563,1759786238568,-150.0,0.00028756,20]
[389675565,1759786238577,-5454.7731288,0.00028756,3]
[389675567,1759786238586,-1789.05994171,0.00028757,2]
[389675569,1759786238595,-266367.875723,0.00028757,3]
[389675571,1759786238604,-136369.32822,0.00028757,3]
[389675572,1759786238613,-692.85645307,0.00028757,2]
[389675574,1759786238622,-692.85645307,0.00028757,2]
[389675576,1759786238631,-151.0,0.00028761,7]
[389675579,1759786238640,-50757.04548361,0.00028764,2]
[389675580,1759786238649,-151.0,0.00028764,7]
[389675582,1759786238659,-300.0,0.00028766,10]
[389675584,1759786238668,-666.0,0.00028766,10]
[389675587,1759786238677,-666.0,0.00028766,10]
[389675589,1759786238686,-1210.2393524,0.00028767,2]
[389675591,1759786238696,-151.0,0.00028767,2]
[389675593,1759786238706,-151.0,0.00028767,2]
[389675594,1759786238715,-8650.7098057,0.00028767,2]
[389675596,1759786238724,-14864.3254066,0.00028767,2]
[389675598,1759786238734,-153.03240117,0.00028767,3]
[389675600,1759786238742,-10645.53,0.00028767,30]
[389675602,1759786238754,-151.0,0.00028767,30]
[389675604,1759786238763,-151.0,0.00028767,30]
[389675606,1759786238772,-151.0,0.00028767,14]
[389675608,1759786238781,-151.0,0.00028767,14]
[389675610,1759786238790,-151.0,0.00028767,30]
[389675612,1759786238800,-151.0,0.00028767,30]
[389675614,1759786238809,-151.0,0.00028767,30]
[389675616,1759786238820,-151.0,0.00028767,30]
[389675619,1759786238830,-151.0,0.00028767,30]
[389675621,1759786238839,-151.0,0.00028767,30]
[389675622,1759786238848,-151.0,0.00028767,30]
[389675624,1759786238858,-151.0,0.00028767,30]
[389675626,1759786238868,-151.509688,0.00028767,30]
[389675628,1759786238877,-151.0,0.00028767,30]
[389675630,1759786238887,-151.0,0.00028767,30]
[389675631,1759786238896,-151.0,0.00028767,30]
[389675633,1759786238906,-153.049078,0.00028767,30]
[389675635,1759786238915,-151.0,0.00028767,30]
[389675637,1759786238924,-151.0,0.00028767,30]
[389675639,1759786238935,-151.0,0.00028767,30]
[389675641,1759786238944,-151.0,0.00028767,30]
[389675643,1759786238954,-151.0,0.00028767,30]
[389675645,1759786238963,-151.0,0.00028767,30]
[389675647,1759786238973,-152.712402,0.00028767,30]
[389675649,1759786238983,-1207.9754581,0.00028767,2]
[389675651,1759786238992,-151.0,0.00028767,30]
[389675653,1759786239001,-151.0,0.00028767,30]
[389675655,1759786239011,-151.0,0.00028767,30]
[389675658,1759786239020,-151.0,0.00028767,30]
[389675659,1759786239030,-151.0,0.00028767,30]
[389675661,1759786239039,-151.0,0.00028767,30]
[389675663,1759786239048,-151.0,0.00028767,30]
[389675665,1759786239060,-255.551385,0.00028767,30]
[389675667,1759786239068,-151.0,0.00028767,30]
[389675669,1759786239078,-151.0,0.00028767,30]
[389675671,1759786239088,-282.635352,0.00028767,30]
[389675673,1759786239097,-211.281905,0.00028767,30]
[389675675,1759786239106,-211.281905,0.00028767,30]
[389675677,1759786239116,-211.281905,0.00028767,30]
[389675678,1759786239129,-211.281905,0.00028767,30]
[389675679,1759786239140,-151.0,0.00028767,30]
[389675681,1759786239149,-151.0,0.00028767,30]
[389675683,1759786239158,-151.0,0.00028767,30]
[389675685,1759786239167,-151.0,0.00028767,30]
[389675687,1759786239176,-151.0,0.00028767,30]
[389675689,1759786239185,-151.0,0.00028767,30]
[389675691,1759786239194,-327.48486,0.00028767,30]
[389675693,1759786239203,-151.0,0.00028767,30]
[389675695,1759786239212,-327.48486,0.00028767,30]
[389675697,1759786239221,-151.0,0.00028767,30]
[389675699,1759786239230,-327.48486,0.00028767,30]
[389675701,1759786239239,-327.48486,0.00028767,30]
[389675703,1759786239249,-151.0,0.00028767,30]
[389675705,1759786239257,-151.0,0.00028767,30]
[389675707,1759786239267,-151.0,0.00028767,30]
[389675709,1759786239276,-151.0,0.00028767,30]
[389675711,1759786239285,-151.0,0.00028767,30]
[389675713,1759786239293,-151.0,0.00028767,30]
[389675715,1759786239303,-151.0,0.00028767,30]
[389675717,1759786239313,-151.0,0.00028767,30]
[389675719,1759786239321,-151.0,0.00028767,30]
[389675721,1759786239330,-151.0,0.00028767,30]
[389675723,1759786239339,-151.0,0.00028767,30]
[389675725,1759786239348,-151.0,0.00028767,30]
[389675727,1759786239357,-151.0,0.00028767,30]
[389675729,1759786239367,-247.702434,0.00028767,30]
[389675731,1759786239375,-151.0,0.00028767,30]
[389675733,1759786239384,-151.0,0.00028767,5]
[389675735,1759786239393,-151.0,0.00028767,5]
[389675737,1759786239402,-151.0,0.00028767,30]
[389675739,1759786239411,-151.0,0.00028767,5]
[389675741,1759786239419,-151.0,0.00028767,5]
[389675743,1759786239428,-151.0,0.00028767,5]
[389675745,1759786239437,-245.0,0.00028767,5]
[389675747,1759786239446,-151.0,0.00028767,30]
[389675749,1759786239455,-151.0,0.00028767,30]
[389675751,1759786239463,-151.0,0.00028767,30]
[389675753,1759786239472,-151.0,0.00028767,30]
[389675755,1759786239484,-151.0,0.00028767,30]
[389675757,1759786239494,-151.0,0.00028767,30]
[389675759,1759786239503,-151.0,0.00028767,30]
[389675761,1759786239512,-151.0,0.00028767,30]
[389675762,1759786239523,-151.0,0.00028767,30]
[389675764,1759786239532,-151.0,0.00028767,30]
[389675766,1759786239542,-151.0,0.00028767,30]
[389675768,1759786239551,-151.0,0.00028767,30]
[389675770,1759786239563,-152.758368,0.00028767,30]
[389675772,1759786239572,-151.0,0.00028767,30]
[389675774,1759786239581,-155.787806,0.00028767,30]
[389675776,1759786239590,-151.0,0.00028767,30]
[389675778,1759786239599,-152.19514,0.00028767,30]
[389675780,1759786239608,-151.0,0.00028767,30]
[389675782,1759786239617,-151.0,0.00028767,30]
[389675784,1759786239627,-151.0,0.00028767,30]
[389675786,1759786239636,-151.0,0.00028767,30]
[389675788,1759786239646,-151.0,0.00028767,30]
[389675791,1759786239656,-199.412609,0.00028767,30]
[389675793,1759786239665,-151.0,0.00028767,30]
[389675795,1759786239674,-151.0,0.00028767,30]
[389675796,1759786239684,-151.0,0.00028767,30]
[389675798,1759786239693,-151.0,0.00028767,30]
[389675800,1759786239702,-151.0,0.00028767,30]
[389675803,1759786239712,-151.0,0.00028767,30]
[389675804,1759786239721,-151.0,0.00028767,30]
[389675806,1759786239731,-257.804648,0.00028767,30]
[389675808,1759786239740,-151.0,0.00028767,30]
[389675811,1759786239749,-151.0,0.00028767,30]
[389675814,1759786239758,-151.0,0.00028767,30]
[389675816,1759786239767,-151.0,0.00028767,30]
[389675818,1759786239775,-236.86043,0.00028767,30]
[389675820,1759786239784,-151.0,0.00028767,30]
[389675822,1759786239793,-151.0,0.00028767,30]
[389675824,1759786239802,-151.0,0.00028767,30]
[389675828,1759786239811,-151.0,0.00028767,30]
[389675830,1759786239821,-151.0,0.00028767,30]
[389675832,1759786239829,-151.0,0.00028767,30]
[389675834,1759786239838,-151.0,0.00028767,30]
[389675836,1759786239847,-151.0,0.00028767,30]
[389675838,1759786239856,-151.0,0.00028767,30]
[389675840,1759786239864,-274.815258,0.00028767,30]
[389675842,1759786239874,-151.0,0.00028767,30]
[389675844,1759786239882,-151.0,0.00028767,30]
[389675846,1759786239891,-151.0,0.00028767,30]
[389675848,1759786239900,-151.0,0.00028767,30]
[389675850,1759786239909,-151.0,0.00028767,30]
[389675851,1759786239917,-151.0,0.00028767,30]
[389675852,1759786239926,-151.0,0.00028767,30]
[389675853,1759786239935,-151.0,0.00028767,30]
[389675854,1759786239943,-151.0,0.00028767,30]
[389675855,1759786239952,-151.0,0.00028767,30]
[389675856,1759786239961,-151.0,0.00028767,30]
[389675857,1759786239970,-285.22764,0.00028767,30]
[389675858,1759786239978,-151.0,0.00028767,30]
[389675859,1759786239987,-151.0,0.00028767,30]
[389675860,1759786239996,-151.0,0.00028767,30]
[389675861,1759786240004,-177.332975,0.00028767,30]
[389675862,1759786240013,-317.756318,0.00028767,30]
[389675863,1759786240023,-317.756318,0.00028767,30]
[389675864,1759786240031,-317.756318,0.00028767,30]
[389675865,1759786240040,-317.756318,0.00028767,30]
[389675866,1759786240049,-157.789838,0.00028767,30]
[389675868,1759786240057,-157.789838,0.00028767,30]
[389675869,1759786240066,-165.70876,0.00028767,30]
[389675871,1759786240074,-317.756318,0.00028767,30]
[389675873,1759786240083,-317.756318,0.00028767,30]
[389675875,1759786240092,-157.789838,0.00028767,30]
[389675877,1759786240101,-157.789838,0.00028767,30]
[389675879,1759786240110,-317.756318,0.00028767,30]
[389675881,1759786240119,-317.756318,0.00028767,30]
[389675883,1759786240128,-157.789838,0.00028767,30]
[389675885,1759786240137,-157.789838,0.00028767,30]
[389675887,1759786240146,-372.388706,0.00028767,30]
[389675889,1759786240155,-372.388706,0.00028767,30]
[389675891,1759786240164,-157.789838,0.00028767,30]
[389675893,1759786240173,-157.789838,0.00028767,30]
[389675895,1759786240182,-372.388706,0.00028767,30]
[389675897,1759786240191,-372.388706,0.00028767,30]
[389675899,1759786240200,-361.684434,0.00028767,30]
[389675901,1759786240208,-372.388706,0.00028767,30]
[389675903,1759786240218,-372.388706,0.00028767,30]
[389675905,1759786240227,-361.684434,0.00028767,30]
[389675907,1759786240236,-361.684434,0.00028767,30]
[389675909,1759786240244,-372.388706,0.00028767,30]
[389675911,1759786240254,-151.0,0.00028767,30]
[389675913,1759786240262,-372.388706,0.00028767,30]
[389675915,1759786240271,-361.684434,0.00028767,30]
[389675917,1759786240280,-151.0,0.00028767,30]
[389675919,1759786240289,-151.0,0.00028767,30]
[389675921,1759786240298,-153.659649,0.00028767,30]
[389675923,1759786240306,-361.684434,0.00028767,30]
[389675925,1759786240316,-361.684434,0.00028767,30]
[389675927,1759786240325,-151.0,0.00028767,30]
[389675929,1759786240334,-152.286432,0.00028767,30]
[389675931,1759786240342,-151.0,0.00028767,30]
[389675933,1759786240351,-361.684434,0.00028767,30]
[389675935,1759786240360,-361.684434,0.00028767,30]
[389675937,1759786240368,-151.0,0.00028767,30]
[389675938,1759786240377,-151.0,0.00028767,30]
[389675940,1759786240386,-151.0,0.00028767,30]
[389675942,1759786240395,-187.203997,0.00028767,30]
[389675944,1759786240404,-151.0,0.00028767,30]
[389675946,1759786240413,-151.0,0.00028767,30]
[389675948,1759786240422,-288.45061,0.00028767,30]
[389675950,1759786240431,-241.644586,0.00028767,30]
[389675952,1759786240439,-241.644586,0.00028767,30]
[389675954,1759786240448,-241.644586,0.00028767,30]
[389675957,1759786240457,-241.644586,0.00028767,30]
[389675958,1759786240466,-151.0,0.00028767,30]
[389675961,1759786240476,-151.0,0.00028767,30]
[389675962,1759786240488,-241.644586,0.00028767,30]
[389675964,1759786240497,-241.644586,0.00028767,30]
[389675966,1759786240506,-241.644586,0.00028767,30]
[389675968,1759786240515,-241.644586,0.00028767,30]
[389675971,1759786240526,-151.0,0.00028767,30]
[389675973,1759786240535,-151.0,0.00028767,30]
[389675975,1759786240543,-151.0,0.00028767,30]
[389675977,1759786240553,-151.0,0.00028767,30]
[389675978,1759786240563,-151.0,0.00028767,30]
[389675980,1759786240572,-151.0,0.00028767,30]
[389675982,1759786240582,-151.0,0.00028767,30]
[389675985,1759786240591,-151.0,0.00028767,30]
[389675986,1759786240599,-151.0,0.00028767,30]
[389675989,1759786240609,-151.0,0.00028767,30]
[389675991,1759786240618,-187.28884,0.00028767,30]
[389675992,1759786240627,-187.28884,0.00028767,30]
[389675994,1759786240637,-3339.99609,0.00028767,2]
[389675996,1759786240648,-187.28884,0.00028767,30]
[389675999,1759786240658,-187.28884,0.00028767,30]
[389676001,1759786240667,-187.28884,0.00028767,30]
[389676003,1759786240676,-187.28884,0.00028767,30]
[389676005,1759786240685,-187.28884,0.00028767,30]
[389676007,1759786240694,-187.28884,0.00028767,30]
[389676009,1759786240703,-151.0,0.00028767,30]
[389676011,1759786240712,-151.0,0.00028767,30]
[389676013,1759786240722,-151.0,0.00028767,30]
[389676015,1759786240731,-151.0,0.00028767,30]
[389676017,1759786240740,-151.0,0.00028767,30]
[389676019,1759786240749,-151.0,0.00028767,30]
[389676021,1759786240759,-151.0,0.00028767,30]
[389676023,1759786240767,-151.0,0.00028767,30]
[389676025,1759786240776,-151.0,0.00028767,30]
[389676027,1759786240786,-151.0,0.00028767,30]
[389676029,1759786240794,-167.407203,0.00028767,30]
[389676030,1759786240803,-151.0,0.00028767,30]
[389676032,1759786240812,-151.0,0.00028767,30]
[389676035,1759786240821,-191.636499,0.00028767,30]
[389676037,1759786240831,-151.0,0.00028767,30]
[389676038,1759786240839,-151.0,0.00028767,30]
[389676040,1759786240848,-151.0,0.00028767,14]
[389676042,1759786240857,-151.0,0.00028767,30]
[389676044,1759786240866,-151.0,0.00028767,30]
[389676046,1759786240875,-151.0,0.00028767,30]
[389676048,1759786240884,-151.0,0.00028767,30]
[389676050,1759786240893,-151.0,0.00028767,30]
[389676052,1759786240902,-151.0,0.00028767,30]
[389676054,1759786240910,-151.0,0.00028767,30]
[389676056,1759786240919,-151.0,0.00028767,30]
[389676058,1759786240927,-151.0,0.00028767,30]
[389676060,1759786240936,-151.0,0.00028767,30]
[389676062,1759786240945,-151.0,0.00028767,30]
[389676065,1759786240954,-151.0,0.00028767,30]
[389676067,1759786240963,-151.418636,0.00028767,30]
[389676069,1759786240972,-151.0,0.00028767,30]
[389676070,1759786240980,-151.0,0.00028767,30]
[389676072,1759786240989,-151.0,0.00028767,30]
[389676074,1759786240998,-151.0,0.00028767,30]
[389676076,1759786241007,-151.0,0.00028767,30]
[389676079,1759786241016,-151.0,0.00028767,30]
[389676080,1759786241025,-151.0,0.00028767,30]
[389676082,1759786241034,-151.0,0.00028767,30]
[389676084,1759786241042,-151.0,0.00028767,30]
[389676086,1759786241051,-151.0,0.00028767,30]
[389676088,1759786241059,-151.0,0.00028767,30]
[389676090,1759786241068,-151.0,0.00028767,30]
[389676092,1759786241077,-151.0,0.00028767,30]
[389676094,1759786241086,-151.0,0.00028767,30]
[389676096,1759786241094,-151.0,0.00028767,30]
[389676098,1759786241103,-151.0,0.00028767,30]
[389676100,1759786241113,-153.350346,0.00028767,30]
[389676102,1759786241121,-217.144851,0.00028767,30]
[389676104,1759786241130,-217.144851,0.00028767,30]
[389676106,1759786241139,-151.0,0.00028767,30]
[389676108,1759786241148,-217.144851,0.00028767,30]
[389676110,1759786241156,-217.144851,0.00028767,30]
[389676112,1759786241165,-151.0,0.00028767,30]
[389676114,1759786241174,-151.0,0.00028767,30]
[389676116,1759786241183,-151.0,0.00028767,30]
[389676118,1759786241192,-157.609489,0.00028767,30]
[389676120,1759786241201,-205.469212,0.00028767,30]
[389676122,1759786241210,-151.0,0.00028767,30]
[389676124,1759786241219,-205.469212,0.00028767,30]
[389676126,1759786241228,-205.469212,0.00028767,30]
[389676128,1759786241237,-151.0,0.00028767,30]
[389676130,1759786241246,-205.469212,0.00028767,30]
[389676132,1759786241255,-168.154566,0.00028767,30]
[389676134,1759786241264,-168.154566,0.00028767,30]
[389676136,1759786241273,-168.154566,0.00028767,30]
[389676138,1759786241282,-151.0,0.00028767,30]
[389676140,1759786241291,-168.154566,0.00028767,30]
[389676153,1759786241395,-168.314834,0.00028767,30]
[389676155,1759786241405,-151.0,0.00028767,30]
[389676157,1759786241414,-168.314834,0.00028767,30]
[389676159,1759786241423,-151.0,0.00028767,30]
[389676161,1759786241432,-151.0,0.00028767,30]
[389676163,1759786241441,-168.314834,0.00028767,30]
[389676165,1759786241450,-151.0,0.00028767,30]
[389676167,1759786241458,-168.314834,0.00028767,30]
[389676168,1759786241467,-151.0,0.00028767,30]
[389676171,1759786241477,-151.0,0.00028767,2]
[389676172,1759786241489,-151.0,0.00028767,30]
[389676174,1759786241498,-151.0,0.00028767,2]
[389676177,1759786241507,-151.0,0.00028767,2]
[389676178,1759786241516,-151.0,0.00028767,30]
[389676181,1759786241526,-208.035831,0.00028767,2]
[389676183,1759786241535,-151.0,0.00028767,30]
[389676185,1759786241544,-151.0,0.00028767,30]
[389676187,1759786241554,-151.0,0.00028767,30]
[389676189,1759786241564,-151.0,0.00028767,30]
[389676191,1759786241573,-151.0,0.00028767,30]
[389676193,1759786241582,-151.0,0.00028767,30]
[389676195,1759786241591,-151.0,0.00028767,30]
[389676197,1759786241600,-151.0,0.00028767,30]
[389676199,1759786241609,-151.0,0.00028767,30]
[389676201,1759786241618,-156.409171,0.00028767,30]
[389676203,1759786241626,-151.0,0.00028767,30]
[389676205,1759786241635,-151.0,0.00028767,30]
[389676207,1759786241645,-1064.324764,0.00028767,30]
[389676209,1759786241654,-151.0,0.00028767,30]
[389676211,1759786241664,-1064.324764,0.00028767,30]
[389676213,1759786241673,-151.0,0.00028767,30]
[389676215,1759786241682,-1064.324764,0.00028767,30]
[389676217,1759786241690,-151.0,0.00028767,30]
[389676219,1759786241699,-151.0,0.00028767,30]
[389676221,1759786241708,-1064.324764,0.00028767,30]
[389676223,1759786241717,-151.0,0.00028767,30]
[389676225,1759786241726,-151.0,0.00028767,15]
[389676227,1759786241735,-151.0,0.00028767,30]
[389676229,1759786241745,-905.865682,0.00028767,30]
[389676231,1759786241755,-151.0,0.00028767,15]
[389676233,1759786241764,-151.0,0.00028767,30]
[389676235,1759786241774,-905.865682,0.00028767,30]
[389676237,1759786241784,-905.865682,0.00028767,30]
[389676239,1759786241793,-151.0,0.00028767,30]
[389676241,1759786241802,-153.835409,0.00028767,30]
[389676243,1759786241811,-151.0,0.00028767,30]
[389676245,1759786241821,-905.865682,0.00028767,30]
[389676247,1759786241830,-151.0,0.00028767,30]
[389676249,1759786241839,-151.0,0.00028767,30]
[389676251,1759786241848,-151.0,0.00028767,30]
[389676253,1759786241858,-151.0,0.00028767,30]
[389676255,1759786241867,-151.0,0.00028767,30]
[389676257,1759786241877,-212.73721,0.00028767,30]
[389676259,1759786241886,-151.0,0.00028767,30]
[389676261,1759786241895,-17003.19390578,0.00028767,120]
[389676263,1759786241905,-3763289.54851331,0.00028767,120]
[389676265,1759786241914,-3415632.68970368,0.00028767,120]
[389676285,1759786242082,-244925.87095877,0.00028767,120]
[389676292,1759786242137,-1000.0,0.00027999,2]
[389676294,1759786242147,-151.0,0.00028767,2]
[389676296,1759786242156,-151.0,0.00028767,2]
[389676298,1759786242165,-16167.85165608,0.00028767,120]
[389676300,1759786242176,-86563.13619478,0.00028767,120]
[389676302,1759786242186,-188.68476908,0.00028767,2]
[389676304,1759786242195,-520.38,0.00028767,2]
[389676306,1759786242204,-57724.31217387,0.00028767,2]
[389676309,1759786242214,-1248.1920502,0.00028767,2]
[389676311,1759786242225,-162176.88021464,0.00028767,2]
[389676313,1759786242236,-2556.71465447,0.00028767,2]
[389676315,1759786242247,-294.43936,0.00028767,2]
[389676318,1759786242259,-1115.90003394,0.00028767,2]
[389676320,1759786242273,-1250.25477327,0.00028767,2]
[389676322,1759786242283,-4986.0,0.00028767,2]
[389676325,1759786242298,-478.11759999,0.00028767,2]
[389676327,1759786242313,-443.08456054,0.00028767,2]
[389676329,1759786242323,-665.23,0.00028767,2]
[389676331,1759786242334,-10157.43742503,0.00028767,2]
[389676393,1759786243009,-362.68972172,0.00028767,2]
[389676395,1759786243020,-14518.58286278,0.00028767,2]
[389676414,1759786243181,-187.00053607,0.00028767,2]
[389676416,1759786243190,-2212.97864498,0.00028767,2]
[389676722,1759786245982,-222.960169,0.00028767,30]
[389676724,1759786245991,-27.499831,0.00028767,2]
[389676741,1759786246156,-43941.47880282,0.00028767,2]
[389676743,1759786246165,-151.58,0.00028767,2]
[389676745,1759786246175,-523.46884388,0.00028773,3]
[389676747,1759786246185,-509.28250638,0.00028773,5]
[389676749,1759786246196,-500.0,0.00028773,5]
[389676751,1759786246206,-506.68945757,0.00028773,5]
[389676753,1759786246215,-500.0,0.00028773,5]
[389676755,1759786246225,-500.0,0.00028773,2]
[389676757,1759786246235,-160.12602689,0.00028773,5]
[389676759,1759786246244,-500.0,0.00028773,5]
[389676761,1759786246253,-1469.18510194,0.0002878,2]
[389676763,1759786246263,-679.17,0.000288,2]
[389676766,1759786246273,-679.17,0.000288,2]
[389676768,1759786246283,-1358.35,0.000288,2]
[389676770,1759786246292,-1358.35,0.000288,2]
[389676772,1759786246302,-1519.2,0.000288,7]
[389676774,1759786246311,-554.12,0.000288,2]
[389676776,1759786246320,-370.68887098,0.000288,30]
[389676778,1759786246330,-200.0,0.000288,10]
[389676780,1759786246339,-158.19917541,0.00028809,2]
[389676782,1759786246348,-1425.0,0.00028826,2]
[389676783,1759786246359,-294.47782026,0.00028832,2]
[389676786,1759786246372,-361.25446331,0.00028839,2]
[389676787,1759786246382,-1000.0,0.00028843,2]
[389676790,1759786246391,-155.585,0.00028855,15]
[389676791,1759786246402,-1272.86026469,0.00028862,2]
[389676793,1759786246412,-1000.0,0.00028863,2]
[389676795,1759786246421,-1372.0,0.00028872,2]
[389676797,1759786246431,-518.91156694,0.00028872,2]
[389676799,1759786246440,-714.8878497,0.00028885,10]
[389676801,1759786246450,-500.0,0.00028889,15]
[389676804,1759786246463,-158.19917541,0.0002889,2]
[389676806,1759786246483,-200.0,0.000289,10]
[389676808,1759786246500,-7000.0,0.0002893,2]
[389676810,1759786246510,-361.25446331,0.00028933,2]
[389676812,1759786246519,-1425.0,0.00028951,2]
[389676814,1759786246529,-4929.69410743,0.00028964,2]
[389676816,1759786246539,-158.19917541,0.00028972,2]
[389676818,1759786246549,-1328.72247067,0.00028984,2]
[389676820,1759786246559,-151.0,0.00028994,30]
[389676822,1759786246568,-151.0,0.00028994,14]
[389676824,1759786246578,-151.0,0.00028994,14]
[389676826,1759786246588,-5735.71344737,0.00028999,5]
[389676828,1759786246600,-751.92500008,0.00028999,5]
[389676830,1759786246611,-315.46697614,0.00028999,5]
[389676834,1759786246634,-151.0,0.00028767,2]
[389676836,1759786246645,-2204.94987548,0.00028999,5]
[389676839,1759786246654,-1504.63169935,0.00029,3]
[389677518,1759786757720,906.59,0.00013699,2]
[389677521,1759787299086,-185.94680981,0.000184,2]
[389677531,1759787432196,-493.22319019,0.000184,2]